[Event "Live Chess"]
[Site "Chess.com"]
[Date "2023.05.20"]
[Round "-"]
[White "IgorSchukin"]
[Black "bristolunichess"]
[Result "1/2-1/2"]
[WhiteElo "1730"]
[BlackElo "1852"]
[TimeControl "300"]
[EndTime "14:38:57 PDT"]
[Termination "Game drawn - insufficient material"]

1. e4 {[%clk 0:04:51.9]} 1... e5 {[%clk 0:04:54.4]} 2. Nf3 {[%clk 0:04:50.3]}
2... Nf6 {[%clk 0:04:53]} 3. Nc3 {[%clk 0:04:48.3]} 3... d6 {[%clk 0:04:49.1]}
4. Bc4 {[%clk 0:04:45.9]} 4... Be7 {[%clk 0:04:36.6]} 5. h3 {[%clk 0:04:43.5]}
5... Nbd7 {[%clk 0:04:33.2]} 6. O-O {[%clk 0:04:40]} 6... c6 {[%clk 0:04:29.6]}
7. d4 {[%clk 0:04:38.4]} 7... b5 {[%clk 0:04:10.9]} 8. dxe5 {[%clk 0:04:06.4]}
8... dxe5 {[%clk 0:04:02.9]} 9. Bd3 {[%clk 0:03:50.7]} 9... O-O {[%clk
0:03:59.4]} 10. a3 {[%clk 0:03:44.7]} 10... Re8 {[%clk 0:03:56.7]} 11. b4 {[%clk
0:03:41.3]} 11... a5 {[%clk 0:03:50.7]} 12. bxa5 {[%clk 0:03:37.6]} 12... Qxa5
{[%clk 0:03:50.6]} 13. Bd2 {[%clk 0:03:33.7]} 13... b4 {[%clk 0:03:43]} 14. axb4
{[%clk 0:03:26.4]} 14... Qxa1 {[%clk 0:03:35.5]} 15. Qxa1 {[%clk 0:03:24.5]}
15... Rxa1 {[%clk 0:03:34.9]} 16. Rxa1 {[%clk 0:03:23.6]} 16... Bxb4 {[%clk
0:03:34.4]} 17. Ra4 {[%clk 0:03:05.2]} 17... Bxc3 {[%clk 0:03:15.7]} 18. Bxc3
{[%clk 0:02:35.1]} 18... Nc5 {[%clk 0:03:14.5]} 19. Ra8 {[%clk 0:02:22.1]} 19...
Nfxe4 {[%clk 0:02:47.8]} 20. Bxe5 {[%clk 0:01:59.9]} 20... Bd7 {[%clk
0:02:42.6]} 21. Rxe8+ {[%clk 0:01:56.7]} 21... Bxe8 {[%clk 0:02:42.5]} 22. Bc4
{[%clk 0:01:36.1]} 22... Kf8 {[%clk 0:02:38.1]} 23. Nd4 {[%clk 0:01:32.6]} 23...
f6 {[%clk 0:02:32.9]} 24. Bc7 {[%clk 0:01:25.4]} 24... Ke7 {[%clk 0:02:25.7]}
25. f3 {[%clk 0:01:23]} 25... Bd7 {[%clk 0:02:24.4]} 26. fxe4 {[%clk 0:01:20.9]}
26... Nxe4 {[%clk 0:02:22.5]} 27. Bd3 {[%clk 0:01:14.9]} 27... Ng5 {[%clk
0:02:15.8]} 28. Nf5+ {[%clk 0:01:09.5]} 28... Kf7 {[%clk 0:02:11.5]} 29. Bd6
{[%clk 0:01:02.8]} 29... Ne6 {[%clk 0:02:08.4]} 30. Bc4 {[%clk 0:01:00.5]} 30...
c5 {[%clk 0:02:07]} 31. Bxc5 {[%clk 0:00:58.1]} 31... Kg6 {[%clk 0:02:00.3]} 32.
Bxe6 {[%clk 0:00:54.5]} 32... Bxe6 {[%clk 0:02:00.2]} 33. Nd4 {[%clk 0:00:51.7]}
33... Bd7 {[%clk 0:01:58.2]} 34. c4 {[%clk 0:00:47.3]} 34... f5 {[%clk
0:01:56.4]} 35. Kf2 {[%clk 0:00:45.7]} 35... Kf6 {[%clk 0:01:55.8]} 36. Ke3
{[%clk 0:00:44.6]} 36... Ke5 {[%clk 0:01:52.6]} 37. Bf8 {[%clk 0:00:42.5]} 37...
g6 {[%clk 0:01:49.5]} 38. c5 {[%clk 0:00:39.6]} 38... Kd5 {[%clk 0:01:48]} 39.
c6 {[%clk 0:00:37.5]} 39... Bxc6 {[%clk 0:01:35.2]} 40. Nxc6 {[%clk 0:00:36.5]}
40... Kxc6 {[%clk 0:01:34.3]} 41. Kd4 {[%clk 0:00:35.8]} 41... Kd7 {[%clk
0:01:32.9]} 42. Ke5 {[%clk 0:00:34.7]} 42... Ke8 {[%clk 0:01:31.2]} 43. Bh6
{[%clk 0:00:32.7]} 43... Kf7 {[%clk 0:01:30.5]} 44. h4 {[%clk 0:00:30.5]} 44...
Ke7 {[%clk 0:01:29.8]} 45. Bg5+ {[%clk 0:00:28.3]} 45... Kf7 {[%clk 0:01:29.3]}
46. Kf4 {[%clk 0:00:25.9]} 46... Ke6 {[%clk 0:01:28.3]} 47. g4 {[%clk
0:00:25.4]} 47... fxg4 {[%clk 0:01:00.9]} 48. Kxg4 {[%clk 0:00:23]} 48... Kf7
{[%clk 0:00:59.2]} 49. Kf4 {[%clk 0:00:19.5]} 49... Kg7 {[%clk 0:00:58.2]} 50.
Ke5 {[%clk 0:00:18.5]} 50... h6 {[%clk 0:00:57.1]} 51. Bf6+ {[%clk 0:00:16.9]}
51... Kf7 {[%clk 0:00:55.1]} 52. Bd8 {[%clk 0:00:15.4]} 52... g5 {[%clk
0:00:52.5]} 53. hxg5 {[%clk 0:00:14]} 53... hxg5 {[%clk 0:00:52.4]} 54. Bxg5
{[%clk 0:00:12.7]} 1/2-1/2

[Event "Live Chess"]
[Site "Chess.com"]
[Date "2023.05.20"]
[Round "-"]
[White "diana21strabt"]
[Black "hturner40"]
[Result "0-1"]
[WhiteElo "1692"]
[BlackElo "1823"]
[TimeControl "300"]
[EndTime "14:39:03 PDT"]
[Termination "hturner40 won by resignation"]

1. e4 {[%clk 0:04:57.5]} 1... Nc6 {[%clk 0:04:58.8]} 2. d4 {[%clk 0:04:54.4]}
2... e5 {[%clk 0:04:57.4]} 3. Nf3 {[%clk 0:04:52]} 3... exd4 {[%clk 0:04:55.4]}
4. Bc4 {[%clk 0:04:50.9]} 4... Nf6 {[%clk 0:04:53.8]} 5. O-O {[%clk 0:04:49.5]}
5... Nxe4 {[%clk 0:04:51.4]} 6. Re1 {[%clk 0:04:48.6]} 6... d5 {[%clk
0:04:50.3]} 7. Bxd5 {[%clk 0:04:47.4]} 7... Qxd5 {[%clk 0:04:49.3]} 8. Nc3
{[%clk 0:04:46.4]} 8... Qd7 {[%clk 0:04:47.6]} 9. Nxe4 {[%clk 0:04:45.3]} 9...
Be7 {[%clk 0:04:46.7]} 10. Bg5 {[%clk 0:04:40.4]} 10... O-O {[%clk 0:04:44.8]}
11. Bxe7 {[%clk 0:04:14.8]} 11... Qxe7 {[%clk 0:04:40.8]} 12. Nxd4 {[%clk
0:04:12.4]} 12... Bd7 {[%clk 0:04:38.6]} 13. Nxc6 {[%clk 0:03:56.6]} 13... Bxc6
{[%clk 0:04:34.4]} 14. Qg4 {[%clk 0:03:53.5]} 14... f5 {[%clk 0:04:20.3]} 15.
Nf6+ {[%clk 0:03:32.7]} 15... Qxf6 {[%clk 0:04:15.9]} 16. Qc4+ {[%clk
0:03:31.5]} 16... Qf7 {[%clk 0:04:07.8]} 17. Qb4 {[%clk 0:03:28.7]} 17... Rad8
{[%clk 0:03:51.6]} 18. Re7 {[%clk 0:03:26.7]} 18... Qd5 {[%clk 0:03:50.5]} 19.
f3 {[%clk 0:03:22.4]} 19... Qd4+ {[%clk 0:03:42.3]} 20. Qxd4 {[%clk 0:03:19.3]}
20... Rxd4 {[%clk 0:03:41.1]} 21. Rxc7 {[%clk 0:03:18]} 21... Re8 {[%clk
0:03:36.5]} 22. c3 {[%clk 0:03:12.6]} 22... Rd2 {[%clk 0:03:35.3]} 23. b4 {[%clk
0:03:08.3]} 23... Ree2 {[%clk 0:03:32.9]} 24. Rc8+ {[%clk 0:03:06.2]} 24... Kf7
{[%clk 0:03:30.6]} 25. Rc7+ {[%clk 0:03:04.9]} 25... Kg6 {[%clk 0:03:27.9]} 0-1

[Event "Live Chess"]
[Site "Chess.com"]
[Date "2023.05.20"]
[Round "-"]
[White "AbilifyXL"]
[Black "jennybobby44"]
[Result "1/2-1/2"]
[WhiteElo "1957"]
[BlackElo "1857"]
[TimeControl "300"]
[EndTime "14:39:08 PDT"]
[Termination "Game drawn by agreement"]

1. d4 {[%clk 0:04:59.6]} 1... Nf6 {[%clk 0:04:59]} 2. c4 {[%clk 0:04:58.6]} 2...
e6 {[%clk 0:04:56.4]} 3. Nf3 {[%clk 0:04:53.7]} 3... d5 {[%clk 0:04:55.3]} 4.
cxd5 {[%clk 0:04:52.8]} 4... exd5 {[%clk 0:04:54.1]} 5. Nc3 {[%clk 0:04:52.7]}
5... c6 {[%clk 0:04:52]} 6. Bg5 {[%clk 0:04:52.2]} 6... Be7 {[%clk 0:04:51.5]}
7. e3 {[%clk 0:04:51.3]} 7... h6 {[%clk 0:04:51]} 8. Bh4 {[%clk 0:04:49.5]} 8...
O-O {[%clk 0:04:49.2]} 9. Qc2 {[%clk 0:04:48.5]} 9... Nbd7 {[%clk 0:04:45.3]}
10. Bd3 {[%clk 0:04:47.2]} 10... Re8 {[%clk 0:04:44.1]} 11. O-O {[%clk
0:04:46.4]} 11... Nf8 {[%clk 0:04:43.6]} 12. Rab1 {[%clk 0:04:45.1]} 12... b5
{[%clk 0:04:40.1]} 13. Rfc1 {[%clk 0:04:39.5]} 13... Ne6 {[%clk 0:04:30.4]} 14.
Ne5 {[%clk 0:04:34.1]} 14... Bb7 {[%clk 0:03:47.6]} 15. Ne2 {[%clk 0:04:22.2]}
15... Rc8 {[%clk 0:03:45.7]} 16. Bf5 {[%clk 0:04:13.4]} 16... c5 {[%clk
0:03:34.3]} 17. Bxe6 {[%clk 0:03:59.5]} 17... fxe6 {[%clk 0:03:32.4]} 18. Qg6
{[%clk 0:03:52]} 18... Rf8 {[%clk 0:03:24.4]} 19. Nf4 {[%clk 0:03:47]} 19... Qd6
{[%clk 0:03:01.8]} 20. Nh5 {[%clk 0:03:31.7]} 20... Nxh5 {[%clk 0:02:55.7]} 21.
Qxh5 {[%clk 0:03:25.8]} 21... Bxh4 {[%clk 0:02:51.3]} 22. Qxh4 {[%clk
0:03:24.8]} 22... c4 {[%clk 0:02:27.1]} 23. h3 {[%clk 0:03:12.3]} 23... Rf6
{[%clk 0:02:13.3]} 24. Rf1 {[%clk 0:02:55.3]} 24... Rcf8 {[%clk 0:02:09.8]} 25.
f4 {[%clk 0:02:52.2]} 25... Bc6 {[%clk 0:02:08.6]} 26. Rf3 {[%clk 0:02:49.5]}
26... Be8 {[%clk 0:02:07.3]} 27. Rg3 {[%clk 0:02:48.1]} 27... Kh7 {[%clk
0:02:01.3]} 28. Qg4 {[%clk 0:02:47]} 28... Rg8 {[%clk 0:01:47.9]} 29. Rf1 {[%clk
0:02:41.3]} 29... b4 {[%clk 0:01:46.2]} 30. f5 {[%clk 0:02:36.8]} 30... exf5
{[%clk 0:01:32]} 31. Rxf5 {[%clk 0:02:35.2]} 31... Rxf5 {[%clk 0:01:27.4]} 32.
Qxf5+ {[%clk 0:02:34.1]} 32... g6 {[%clk 0:01:24.2]} 33. Qf4 {[%clk 0:02:25]}
33... Qf8 {[%clk 0:00:55.4]} 34. Qh4 {[%clk 0:02:16.1]} 34... Rg7 {[%clk
0:00:45]} 35. Rf3 {[%clk 0:02:14.1]} 35... Qe7 {[%clk 0:00:39.7]} 36. Qf4 {[%clk
0:02:08.8]} 36... a5 {[%clk 0:00:38.9]} 37. h4 {[%clk 0:02:06.4]} 37... h5
{[%clk 0:00:35.3]} 38. Rg3 {[%clk 0:01:57.2]} 38... a4 {[%clk 0:00:33.7]} 39.
Nf3 {[%clk 0:01:54.7]} 39... Kg8 {[%clk 0:00:29.6]} 40. Ng5 {[%clk 0:01:53]}
40... Bd7 {[%clk 0:00:24.8]} 41. Rf3 {[%clk 0:01:46.6]} 41... Bf5 {[%clk
0:00:24.1]} 42. Qb8+ {[%clk 0:01:42.5]} 42... Qf8 {[%clk 0:00:20.7]} 43. Qe5
{[%clk 0:01:32.3]} 43... a3 {[%clk 0:00:19.6]} 44. Qxd5+ {[%clk 0:01:28]} 44...
Kh8 {[%clk 0:00:18.3]} 45. Qxc4 {[%clk 0:01:26.4]} 45... axb2 {[%clk 0:00:17.4]}
1/2-1/2

[Event "Live Chess"]
[Site "Chess.com"]
[Date "2023.05.20"]
[Round "-"]
[White "stevochess11"]
[Black "KeithArkell"]
[Result "0-1"]
[WhiteElo "1770"]
[BlackElo "2619"]
[TimeControl "300"]
[EndTime "14:39:11 PDT"]
[Termination "KeithArkell won by resignation"]

1. d4 {[%clk 0:04:57.4]} 1... e6 {[%clk 0:04:59]} 2. Nf3 {[%clk 0:04:56.5]} 2...
Nf6 {[%clk 0:04:57.9]} 3. e3 {[%clk 0:04:55.6]} 3... c5 {[%clk 0:04:56.8]} 4.
Bd3 {[%clk 0:04:54.5]} 4... cxd4 {[%clk 0:04:55.6]} 5. exd4 {[%clk 0:04:53.6]}
5... b6 {[%clk 0:04:54.6]} 6. O-O {[%clk 0:04:52.5]} 6... Be7 {[%clk 0:04:54]}
7. c4 {[%clk 0:04:48.9]} 7... O-O {[%clk 0:04:52.6]} 8. Nc3 {[%clk 0:04:48]}
8... d5 {[%clk 0:04:50.2]} 9. cxd5 {[%clk 0:04:45.3]} 9... Nxd5 {[%clk
0:04:48.9]} 10. Nxd5 {[%clk 0:04:36.9]} 10... Qxd5 {[%clk 0:04:46.2]} 11. Bf4
{[%clk 0:04:32.9]} 11... Bb7 {[%clk 0:04:44.4]} 12. Be2 {[%clk 0:04:29.4]} 12...
Nc6 {[%clk 0:04:39.8]} 13. a3 {[%clk 0:04:22.1]} 13... Bf6 {[%clk 0:04:38.9]}
14. Be3 {[%clk 0:04:00]} 14... Rfd8 {[%clk 0:04:35.3]} 15. Rc1 {[%clk
0:03:43.6]} 15... Nxd4 {[%clk 0:04:33.7]} 16. Bxd4 {[%clk 0:03:37]} 16... Bxd4
{[%clk 0:04:32.7]} 17. Bc4 {[%clk 0:03:31.1]} 17... Qd6 {[%clk 0:04:26.8]} 18.
b4 {[%clk 0:03:22.7]} 18... Bf6 {[%clk 0:04:23.8]} 19. Qb3 {[%clk 0:03:14.2]}
19... Rac8 {[%clk 0:04:21.1]} 20. Rfd1 {[%clk 0:03:03.2]} 20... Qe7 {[%clk
0:04:01.2]} 21. Re1 {[%clk 0:02:49.2]} 21... g6 {[%clk 0:03:38.4]} 22. Rxe6
{[%clk 0:01:56.1]} 22... fxe6 {[%clk 0:03:34.9]} 23. Bxe6+ {[%clk 0:01:54.8]}
23... Kg7 {[%clk 0:03:34.2]} 24. Bxc8 {[%clk 0:01:53.2]} 24... Rxc8 {[%clk
0:03:31.5]} 25. Rxc8 {[%clk 0:01:49]} 25... Bxc8 {[%clk 0:03:30.5]} 26. h3
{[%clk 0:01:42.5]} 26... Bb7 {[%clk 0:03:27.9]} 27. Qd3 {[%clk 0:01:28.3]} 27...
Bc6 {[%clk 0:03:19.9]} 28. Nd4 {[%clk 0:01:25.7]} 28... Qd7 {[%clk 0:03:14]} 0-1

[Event "Live Chess"]
[Site "Chess.com"]
[Date "2023.05.20"]
[Round "-"]
[White "grillage"]
[Black "gmnorfolk"]
[Result "0-1"]
[WhiteElo "1843"]
[BlackElo "2120"]
[TimeControl "300"]
[EndTime "14:39:18 PDT"]
[Termination "gmnorfolk won by checkmate"]

1. d4 {[%clk 0:04:57.5]} 1... Nf6 {[%clk 0:04:58.5]} 2. Nc3 {[%clk 0:04:54.5]}
2... d5 {[%clk 0:04:57.1]} 3. Bf4 {[%clk 0:04:51.4]} 3... e6 {[%clk 0:04:56.3]}
4. Nb5 {[%clk 0:04:47.9]} 4... Bb4+ {[%clk 0:04:55.3]} 5. c3 {[%clk 0:04:45.1]}
5... Ba5 {[%clk 0:04:55.2]} 6. Qa4 {[%clk 0:04:35.3]} 6... Bb4 {[%clk
0:04:55.1]} 7. Qxb4 {[%clk 0:04:28.1]} 7... Na6 {[%clk 0:04:40.2]} 8. Qa3 {[%clk
0:04:24.4]} 8... Nh5 {[%clk 0:04:36.9]} 9. Bg3 {[%clk 0:04:12.9]} 9... Bd7
{[%clk 0:04:29.9]} 10. c4 {[%clk 0:04:09.8]} 10... dxc4 {[%clk 0:04:25.3]} 11.
Nc3 {[%clk 0:04:03.8]} 11... Qc8 {[%clk 0:04:17.6]} 12. Nf3 {[%clk 0:04:00.1]}
12... b5 {[%clk 0:04:15.6]} 13. Ne4 {[%clk 0:03:48.1]} 13... f5 {[%clk
0:04:08.4]} 14. Nc5 {[%clk 0:03:43.4]} 14... Nxc5 {[%clk 0:03:54.8]} 15. Qxc5
{[%clk 0:03:42.3]} 15... Nxg3 {[%clk 0:03:53.2]} 16. hxg3 {[%clk 0:03:40.8]}
16... h6 {[%clk 0:03:50.3]} 17. Ne5 {[%clk 0:03:37.6]} 17... c6 {[%clk
0:03:48.1]} 18. e3 {[%clk 0:03:30]} 18... Qc7 {[%clk 0:03:41.8]} 19. Ng6 {[%clk
0:03:28.3]} 19... O-O-O {[%clk 0:03:34.1]} 20. Nxh8 {[%clk 0:03:26.6]} 20...
Rxh8 {[%clk 0:03:34]} 21. a4 {[%clk 0:03:19.4]} 21... Qa5+ {[%clk 0:03:29.7]}
22. Kd1 {[%clk 0:03:09.2]} 22... e5 {[%clk 0:03:25.2]} 23. Qxe5 {[%clk
0:02:58.1]} 23... f4 {[%clk 0:03:21.1]} 24. gxf4 {[%clk 0:02:52.9]} 24... c3
{[%clk 0:03:18.3]} 25. Qxg7 {[%clk 0:02:38.4]} 25... cxb2 {[%clk 0:03:07.9]} 26.
Qxh8+ {[%clk 0:02:34.8]} 26... Kb7 {[%clk 0:03:06.1]} 27. Rb1 {[%clk 0:02:29.2]}
27... Qxa4+ {[%clk 0:02:58.3]} 28. Kd2 {[%clk 0:02:24.4]} 28... Qb4+ {[%clk
0:02:47.9]} 29. Kc2 {[%clk 0:02:06]} 29... Bf5+ {[%clk 0:02:43]} 30. Bd3 {[%clk
0:02:03.2]} 30... Qc4+ {[%clk 0:02:29.7]} 31. Kxb2 {[%clk 0:02:02.3]} 31... Qb4+
{[%clk 0:02:25.2]} 32. Kc2 {[%clk 0:01:56]} 32... Qc4+ {[%clk 0:02:22.9]} 33.
Kb2 {[%clk 0:01:43.3]} 33... Qb4+ {[%clk 0:02:19.8]} 34. Kc1 {[%clk 0:01:32.2]}
34... Qc3+ {[%clk 0:02:14.6]} 35. Kd1 {[%clk 0:01:25]} 35... Qxd3+ {[%clk
0:02:06.7]} 36. Ke1 {[%clk 0:01:24.2]} 36... Qxb1+ {[%clk 0:01:43.6]} 37. Ke2
{[%clk 0:01:23.4]} 37... Qxh1 {[%clk 0:01:27.4]} 38. Qg7+ {[%clk 0:01:22.1]}
38... Kb6 {[%clk 0:01:24.2]} 39. Qe5 {[%clk 0:01:15.4]} 39... Bg4+ {[%clk
0:01:13.3]} 40. f3 {[%clk 0:01:05.4]} 40... Qxg2+ {[%clk 0:01:10.7]} 41. Kd3
{[%clk 0:01:05]} 41... Qf1+ {[%clk 0:01:04.9]} 42. Kd2 {[%clk 0:00:55.2]} 42...
Qf2+ {[%clk 0:00:53.1]} 43. Kd3 {[%clk 0:00:53.8]} 43... Qxf3 {[%clk 0:00:37.7]}
44. Qc5+ {[%clk 0:00:52.3]} 44... Kb7 {[%clk 0:00:36]} 45. Qe7+ {[%clk
0:00:50.9]} 45... Kc8 {[%clk 0:00:34.5]} 46. Qf8+ {[%clk 0:00:49]} 46... Kc7
{[%clk 0:00:33.3]} 47. Qe7+ {[%clk 0:00:48.2]} 47... Bd7 {[%clk 0:00:32]} 48.
Qe5+ {[%clk 0:00:39.9]} 48... Kb7 {[%clk 0:00:31.1]} 49. Qe7 {[%clk 0:00:36]}
49... Qd1+ {[%clk 0:00:29.1]} 50. Ke4 {[%clk 0:00:33.9]} 50... Qb1+ {[%clk
0:00:27.6]} 51. Ke5 {[%clk 0:00:31.5]} 51... Qf5+ {[%clk 0:00:26.8]} 52. Kd6
{[%clk 0:00:30]} 52... Qd5# {[%clk 0:00:25]} 0-1

[Event "Live Chess"]
[Site "Chess.com"]
[Date "2023.05.20"]
[Round "-"]
[White "CheckThis4"]
[Black "Daniel_Gliddon_FA"]
[Result "1-0"]
[WhiteElo "2548"]
[BlackElo "1217"]
[TimeControl "300"]
[EndTime "14:39:28 PDT"]
[Termination "CheckThis4 won by resignation"]

1. Nf3 {[%clk 0:04:55.6]} 1... Nc6 {[%clk 0:04:53.4]} 2. b4 {[%clk 0:04:51.5]}
2... e5 {[%clk 0:04:49.2]} 3. b5 {[%clk 0:04:50.1]} 3... e4 {[%clk 0:04:48.1]}
4. bxc6 {[%clk 0:04:47.8]} 4... exf3 {[%clk 0:04:47]} 5. cxb7 {[%clk 0:04:40]}
5... Bxb7 {[%clk 0:04:42.4]} 6. exf3 {[%clk 0:04:36.4]} 6... Qe7+ {[%clk
0:04:39.4]} 7. Be2 {[%clk 0:04:33.5]} 7... Nf6 {[%clk 0:04:37.3]} 8. Nc3 {[%clk
0:04:31.9]} 8... Qc5 {[%clk 0:04:26.3]} 9. Rb1 {[%clk 0:04:29.2]} 9... Qc6
{[%clk 0:04:13.4]} 10. O-O {[%clk 0:04:25.7]} 10... Bc5 {[%clk 0:04:10.3]} 11.
d4 {[%clk 0:04:19.4]} 11... Bb6 {[%clk 0:04:05.7]} 12. Ne4 {[%clk 0:04:06.9]}
12... Nd5 {[%clk 0:03:55.4]} 13. c4 {[%clk 0:04:04.1]} 13... Ne7 {[%clk
0:03:35.4]} 14. d5 {[%clk 0:03:58.8]} 14... Qg6 {[%clk 0:03:24.7]} 15. c5 {[%clk
0:03:55.3]} 15... Ba5 {[%clk 0:03:04.5]} 16. Rxb7 {[%clk 0:03:47.6]} 16... Nf5
{[%clk 0:02:55.7]} 17. Bf4 {[%clk 0:03:37.7]} 17... Nh4 {[%clk 0:02:53.7]} 18.
Bg3 {[%clk 0:03:35.7]} 18... Nf5 {[%clk 0:02:51.8]} 19. Qa4 {[%clk 0:03:30.7]}
1-0

[Event "Live Chess"]
[Site "Chess.com"]
[Date "2023.05.20"]
[Round "-"]
[White "toog"]
[Black "Stanbad1"]
[Result "1-0"]
[WhiteElo "2619"]
[BlackElo "2389"]
[TimeControl "300"]
[EndTime "14:39:45 PDT"]
[Termination "toog won by resignation"]

1. Nf3 {[%clk 0:04:56.5]} 1... Nf6 {[%clk 0:04:56]} 2. c4 {[%clk 0:04:54.3]}
2... g6 {[%clk 0:04:48.3]} 3. d4 {[%clk 0:04:52.9]} 3... Bg7 {[%clk 0:04:47.4]}
4. g3 {[%clk 0:04:52]} 4... d6 {[%clk 0:04:46.7]} 5. Bg2 {[%clk 0:04:48.9]} 5...
O-O {[%clk 0:04:46.6]} 6. O-O {[%clk 0:04:47.7]} 6... c5 {[%clk 0:04:46.2]} 7.
Nc3 {[%clk 0:04:46.7]} 7... Nc6 {[%clk 0:04:45.4]} 8. dxc5 {[%clk 0:04:44.1]}
8... dxc5 {[%clk 0:04:45.3]} 9. Be3 {[%clk 0:04:36.9]} 9... Nd7 {[%clk
0:04:43.7]} 10. Qd2 {[%clk 0:04:31.2]} 10... b6 {[%clk 0:04:23.9]} 11. Bh6
{[%clk 0:04:26]} 11... Bb7 {[%clk 0:04:21.5]} 12. Bxg7 {[%clk 0:04:24.5]} 12...
Kxg7 {[%clk 0:04:19.4]} 13. Rfd1 {[%clk 0:04:23.9]} 13... Nf6 {[%clk 0:04:18.2]}
14. Qf4 {[%clk 0:04:21]} 14... Qb8 {[%clk 0:04:16.5]} 15. Qh4 {[%clk 0:04:18]}
15... Rd8 {[%clk 0:04:06.1]} 16. Nd5 {[%clk 0:04:14.8]} 16... Nxd5 {[%clk
0:04:03.2]} 17. cxd5 {[%clk 0:04:14.7]} 17... Nb4 {[%clk 0:04:01.7]} 18. e4
{[%clk 0:04:10.3]} 18... Qc7 {[%clk 0:03:59.5]} 19. a3 {[%clk 0:04:05.4]} 19...
Na6 {[%clk 0:03:57]} 20. Rac1 {[%clk 0:03:54.6]} 20... Qd7 {[%clk 0:03:54]} 21.
e5 {[%clk 0:03:39.8]} 21... Nc7 {[%clk 0:03:50.5]} 22. d6 {[%clk 0:03:06.4]}
22... Ne6 {[%clk 0:03:46.1]} 23. dxe7 {[%clk 0:02:58.2]} 23... Qxd1+ {[%clk
0:03:41.3]} 24. Rxd1 {[%clk 0:02:56.8]} 24... Rxd1+ {[%clk 0:03:41.2]} 25. Bf1
{[%clk 0:02:56.1]} 25... Bxf3 {[%clk 0:03:39.4]} 26. Qf6+ {[%clk 0:02:54.3]}
26... Kg8 {[%clk 0:03:34]} 27. Qxf3 {[%clk 0:02:54.2]} 27... Rxf1+ {[%clk
0:03:30.5]} 28. Kxf1 {[%clk 0:02:51.9]} 28... Re8 {[%clk 0:03:30.4]} 29. Qb7
{[%clk 0:02:50]} 29... a6 {[%clk 0:03:28.1]} 30. Qd7 {[%clk 0:02:45.8]} 30...
Ng7 {[%clk 0:03:25.8]} 31. f4 {[%clk 0:02:44.4]} 31... h6 {[%clk 0:03:24.6]} 32.
g4 {[%clk 0:02:42.8]} 32... Ra8 {[%clk 0:03:20.8]} 33. f5 {[%clk 0:02:41.8]}
33... Ne8 {[%clk 0:03:19.1]} 34. e6 {[%clk 0:02:40]} 34... gxf5 {[%clk
0:03:15.9]} 35. gxf5 {[%clk 0:02:37.2]} 35... Kg7 {[%clk 0:03:15.3]} 36. exf7
{[%clk 0:02:35.8]} 36... Kxf7 {[%clk 0:03:15.2]} 37. Qe6+ {[%clk 0:02:34.4]}
37... Kg7 {[%clk 0:03:13.9]} 38. Qg6+ {[%clk 0:02:33.7]} 38... Kh8 {[%clk
0:03:12.6]} 39. f6 {[%clk 0:02:33.4]} 1-0

[Event "Live Chess"]
[Site "Chess.com"]
[Date "2023.05.20"]
[Round "-"]
[White "Jo1ts"]
[Black "EdenHazard8"]
[Result "0-1"]
[WhiteElo "736"]
[BlackElo "2056"]
[TimeControl "300"]
[EndTime "14:39:50 PDT"]
[Termination "EdenHazard8 won by checkmate"]

1. d4 {[%clk 0:04:56.9]} 1... e6 {[%clk 0:04:58.1]} 2. Bf4 {[%clk 0:04:55.7]}
2... f5 {[%clk 0:04:56]} 3. Nf3 {[%clk 0:04:54.7]} 3... Nf6 {[%clk 0:04:53.7]}
4. e3 {[%clk 0:04:47.7]} 4... Be7 {[%clk 0:04:53.6]} 5. Nbd2 {[%clk 0:04:46.5]}
5... Bf8 {[%clk 0:04:53.5]} 6. Bd3 {[%clk 0:04:42.9]} 6... Be7 {[%clk
0:04:48.3]} 7. Ne5 {[%clk 0:04:38.9]} 7... O-O {[%clk 0:04:42]} 8. h3 {[%clk
0:04:28.9]} 8... b6 {[%clk 0:04:38.3]} 9. g4 {[%clk 0:04:27.7]} 9... Bb7 {[%clk
0:04:36.4]} 10. g5 {[%clk 0:04:23.2]} 10... Bxh1 {[%clk 0:04:33.4]} 11. g6
{[%clk 0:04:16.6]} 11... d6 {[%clk 0:04:20.7]} 12. gxh7+ {[%clk 0:04:00]} 12...
Kxh7 {[%clk 0:04:18.1]} 13. Nef3 {[%clk 0:03:59]} 13... Qe8 {[%clk 0:04:14.3]}
14. Qe2 {[%clk 0:03:51.7]} 14... Bxf3 {[%clk 0:03:58.8]} 15. Qxf3 {[%clk
0:03:51.6]} 15... Nd5 {[%clk 0:03:53.2]} 16. Bc4 {[%clk 0:03:36.7]} 16... c6
{[%clk 0:03:22.1]} 17. O-O-O {[%clk 0:03:22.5]} 17... Nd7 {[%clk 0:03:17.7]} 18.
Rh1 {[%clk 0:02:58.9]} 18... N7f6 {[%clk 0:03:15.6]} 19. h4 {[%clk 0:02:44.9]}
19... Qh5 {[%clk 0:02:56.8]} 20. Qg3 {[%clk 0:02:31.3]} 20... Rad8 {[%clk
0:02:38.8]} 21. Rg1 {[%clk 0:02:29]} 21... Rf7 {[%clk 0:02:31.8]} 22. Nf3 {[%clk
0:02:23.4]} 22... Nxf4 {[%clk 0:02:25.4]} 23. Ng5+ {[%clk 0:02:10.8]} 23... Kg8
{[%clk 0:02:22.5]} 24. Nxf7 {[%clk 0:02:06.2]} 24... Qxf7 {[%clk 0:02:18.1]} 25.
Qxf4 {[%clk 0:01:57.8]} 25... Ne4 {[%clk 0:02:09.7]} 26. Bd3 {[%clk 0:01:45.6]}
26... Nf6 {[%clk 0:01:56.3]} 27. f3 {[%clk 0:01:26.3]} 27... Nd5 {[%clk
0:01:51.1]} 28. Qh2 {[%clk 0:01:12.2]} 28... Nxe3 {[%clk 0:01:48.6]} 29. h5
{[%clk 0:01:05.4]} 29... Kh7 {[%clk 0:01:29]} 30. Rh1 {[%clk 0:00:47.4]} 30...
Bg5 {[%clk 0:01:18.8]} 31. Qg3 {[%clk 0:00:37.2]} 31... Bh6 {[%clk 0:01:02.3]}
32. Rg1 {[%clk 0:00:25.1]} 32... Nf1+ {[%clk 0:01:00.4]} 33. Qg5 {[%clk
0:00:18.2]} 33... Bxg5+ {[%clk 0:00:59]} 34. Rxg5 {[%clk 0:00:18.1]} 34... Ne3
{[%clk 0:00:56.7]} 35. Rg1 {[%clk 0:00:12.9]} 35... Qf6 {[%clk 0:00:55]} 36. c3
{[%clk 0:00:09]} 36... Qh4 {[%clk 0:00:53.6]} 37. Rd1 {[%clk 0:00:07]} 37...
Nxd1 {[%clk 0:00:50.2]} 38. Kxd1 {[%clk 0:00:06.9]} 38... Qh1+ {[%clk
0:00:49.1]} 39. Kc2 {[%clk 0:00:06.3]} 39... e5 {[%clk 0:00:48.1]} 40. dxe5
{[%clk 0:00:04.1]} 40... dxe5 {[%clk 0:00:46.9]} 41. Bc4 {[%clk 0:00:03.3]}
41... Qd1# {[%clk 0:00:45.2]} 0-1